[Event "Titled Tuesday Blitz May 25 2021"]
[White "Principe, Gerson"]
[Black "Vogel, Roven"]
[WhiteFideId "3804550"]
[BlackFideId "12908088"]
[WhiteElo "2280"]
[BlackElo "2516"]
[Result "1/2-1/2"]
[Round "04"]
[TimeControl "180+1"]
[Date "2021.05.25"]
[WhiteClock "0:00:11"]
[BlackClock "0:00:04"]

1. d4 {[%clk 0:03:00]}  d5 {[%clk 0:02:59]} 2. Nf3 {[%clk 0:03:00]}  Nf6 {[%clk 0:02:58]} 3. c4 {[%clk 0:03:00]}  e6 {[%clk 0:02:58]} 4. Nc3 {[%clk 0:03:00]}  a6 {[%clk 0:02:57]} 5. cxd5 {[%clk 0:02:59]}  exd5 {[%clk 0:02:58]} 6. Bg5 {[%clk 0:02:59]}  Be6 {[%clk 0:02:58]} 7. e3 {[%clk 0:03:00]}  Nbd7 {[%clk 0:02:57]} 8. Be2 {[%clk 0:02:53]}  Bd6 {[%clk 0:02:56]} 9. O-O {[%clk 0:02:52]}  c6 {[%clk 0:02:55]} 10. Rc1 {[%clk 0:02:47]}  Qb8 {[%clk 0:02:55]} 11. Bh4 {[%clk 0:02:45]}  O-O {[%clk 0:02:54]} 12. Bg3 {[%clk 0:02:45]}  Bg4 {[%clk 0:02:52]} 13. Bxd6 {[%clk 0:02:42]}  Qxd6 {[%clk 0:02:51]} 14. a3 {[%clk 0:02:41]}  Rfe8 {[%clk 0:02:44]} 15. Re1 {[%clk 0:02:38]}  a5 {[%clk 0:02:31]} 16. Qc2 {[%clk 0:02:37]}  Bh5 {[%clk 0:02:29]} 17. Nd2 {[%clk 0:02:26]}  Bg6 {[%clk 0:02:28]} 18. Bd3 {[%clk 0:02:25]}  Ng4 {[%clk 0:02:27]} 19. Nf1 {[%clk 0:02:22]}  Qf6 {[%clk 0:02:21]} 20. Bxg6 {[%clk 0:02:20]}  hxg6 {[%clk 0:02:19]} 21. h3 {[%clk 0:02:15]}  Nh6 {[%clk 0:02:18]} 22. Ng3 {[%clk 0:02:14]}  Nf5 {[%clk 0:02:17]} 23. Nxf5 {[%clk 0:02:13]}  gxf5 {[%clk 0:02:18]} 24. g3 {[%clk 0:02:08]}  g6 {[%clk 0:02:14]} 25. h4 {[%clk 0:02:08]}  Kg7 {[%clk 0:02:09]} 26. Kg2 {[%clk 0:02:07]}  Qe6 {[%clk 0:02:08]} 27. Rh1 {[%clk 0:02:05]}  Nf6 {[%clk 0:02:07]} 28. Ne2 {[%clk 0:01:59]}  Qd6 {[%clk 0:01:55]} 29. Nf4 {[%clk 0:01:57]}  Ng4 {[%clk 0:01:46]} 30. Rce1 {[%clk 0:01:48]}  b6 {[%clk 0:01:34]} 31. Qd3 {[%clk 0:01:25]}  Rad8 {[%clk 0:01:27]} 32. h5 {[%clk 0:01:19]}  Rh8 {[%clk 0:01:26]} 33. f3 {[%clk 0:01:16]}  Nf6 {[%clk 0:01:25]} 34. g4 {[%clk 0:01:06]}  fxg4 {[%clk 0:01:02]} 35. hxg6 {[%clk 0:00:56]}  gxf3+ {[%clk 0:01:02]} 36. Kxf3 {[%clk 0:00:57]}  Ne4 {[%clk 0:01:03]} 37. gxf7 {[%clk 0:00:49]}  Kxf7 {[%clk 0:01:02]} 38. Reg1 {[%clk 0:00:41]}  b5 {[%clk 0:00:43]} 39. Qc2 {[%clk 0:00:29]}  Rdg8 {[%clk 0:00:35]} 40. Rxh8 {[%clk 0:00:23]}  Rxh8 {[%clk 0:00:30]} 41. Qg2 {[%clk 0:00:23]}  Qf6 {[%clk 0:00:27]} 42. Ke2 {[%clk 0:00:23]}  Ke8 {[%clk 0:00:22]} 43. Kd1 {[%clk 0:00:21]}  Kd8 {[%clk 0:00:21]} 44. Kc1 {[%clk 0:00:19]}  Kc7 {[%clk 0:00:21]} 45. Qg4 {[%clk 0:00:13]}  Kb6 {[%clk 0:00:20]} 46. Qd7 {[%clk 0:00:11]}  Qd6 {[%clk 0:00:18]} 47. Qg7 {[%clk 0:00:08]}  Rc8 {[%clk 0:00:16]} 48. Rg6 {[%clk 0:00:07]}  Qd8 {[%clk 0:00:11]} 49. Qf7 {[%clk 0:00:06]}  Nd6 {[%clk 0:00:03]} 50. Qe6 {[%clk 0:00:06]}  Kc7 {[%clk 0:00:02]} 51. Rg7+ {[%clk 0:00:06]}  Kb6 {[%clk 0:00:02]} 52. Nd3 {[%clk 0:00:06]}  Ne4 {[%clk 0:00:01]} 53. Nc5 {[%clk 0:00:06]}  a4 {[%clk 0:00:02]} 54. Nxe4 {[%clk 0:00:05]}  dxe4 {[%clk 0:00:02]} 55. Qxe4 {[%clk 0:00:06]}  Qd5 {[%clk 0:00:03]} 56. Qxd5 {[%clk 0:00:06]}  cxd5+ {[%clk 0:00:04]} 57. Kd2 {[%clk 0:00:06]}  Kc6 {[%clk 0:00:04]} 58. Rg6+ {[%clk 0:00:06]}  Kd7 {[%clk 0:00:04]} 59. Rb6 {[%clk 0:00:05]}  Rg8 {[%clk 0:00:04]} 60. Rxb5 {[%clk 0:00:05]}  Rg2+ {[%clk 0:00:05]} 61. Kc3 {[%clk 0:00:06]}  Kd6 {[%clk 0:00:06]} 62. Rb6+ {[%clk 0:00:04]}  Kc7 {[%clk 0:00:05]} 63. Rf6 {[%clk 0:00:04]}  Re2 {[%clk 0:00:05]} 64. Re6 {[%clk 0:00:05]}  Kd7 {[%clk 0:00:05]} 65. Re5 {[%clk 0:00:04]}  Kd6 {[%clk 0:00:06]} 66. Kb4 {[%clk 0:00:04]}  Rxb2+ {[%clk 0:00:06]} 67. Kxa4 {[%clk 0:00:05]}  Rb1 {[%clk 0:00:06]} 68. Rh5 {[%clk 0:00:04]}  Re1 {[%clk 0:00:06]} 69. Rh6+ {[%clk 0:00:05]}  Kd7 {[%clk 0:00:06]} 70. Rh5 {[%clk 0:00:04]}  Rxe3 {[%clk 0:00:05]} 71. Rxd5+ {[%clk 0:00:05]}  Kc6 {[%clk 0:00:06]} 72. Rc5+ {[%clk 0:00:05]}  Kd6 {[%clk 0:00:06]} 73. Rh5 {[%clk 0:00:03]}  Rd3 {[%clk 0:00:06]} 74. Rh6+ {[%clk 0:00:02]}  Kd5 {[%clk 0:00:05]} 75. Rh5+ {[%clk 0:00:03]}  Kxd4 {[%clk 0:00:05]} 76. Kb4 {[%clk 0:00:03]}  Rd1 {[%clk 0:00:05]} 77. Rb5 {[%clk 0:00:03]}  Rb1+ {[%clk 0:00:05]} 78. Ka5 {[%clk 0:00:03]}  Ra1 {[%clk 0:00:05]} 79. a4 {[%clk 0:00:04]}  Kc4 {[%clk 0:00:05]} 80. Rb8 {[%clk 0:00:04]}  Kc5 {[%clk 0:00:05]} 81. Rc8+ {[%clk 0:00:05]}  Kd6 {[%clk 0:00:05]} 82. Rb8 {[%clk 0:00:06]}  Kc7 {[%clk 0:00:04]} 83. Rb5 {[%clk 0:00:06]}  Ra2 {[%clk 0:00:04]} 84. Rb4 {[%clk 0:00:07]}  Kc6 {[%clk 0:00:04]} 85. Rc4+ {[%clk 0:00:07]}  Kb7 {[%clk 0:00:03]} 86. Rc1 {[%clk 0:00:08]}  Ka7 {[%clk 0:00:04]} 87. Kb4 {[%clk 0:00:08]}  Rb2+ {[%clk 0:00:04]} 88. Ka5 {[%clk 0:00:09]}  Rh2 {[%clk 0:00:04]} 89. Rg1 {[%clk 0:00:09]}  Rh5+ {[%clk 0:00:04]} 90. Kb4 {[%clk 0:00:10]}  Rh4+ {[%clk 0:00:04]} 91. Ka3 {[%clk 0:00:10]}  Rh3+ {[%clk 0:00:04]} 92. Kb4 {[%clk 0:00:10]}  Rh4+ {[%clk 0:00:04]} 93. Ka3 {[%clk 0:00:11]}  Rh3+ {[%clk 0:00:04]} 94. Kb4 {[%clk 0:00:11]}  Rh4+ {[%clk 0:00:04]} 1/2-1/2


[Site "https://www.chess.com"]

[Event "Titled Tuesday Blitz May 25 2021"]
[White "Quparadze, Giga"]
[Black "Ozen, Bahadir"]
[WhiteFideId "13602250"]
[BlackFideId "6337058"]
[WhiteElo "2658"]
[BlackElo "2503"]
[Result "1/2-1/2"]
[Round "04"]
[TimeControl "180+1"]
[Date "2021.05.25"]
[WhiteClock "0:01:26"]
[BlackClock "0:00:22"]

1. e4 {[%clk 0:03:00]}  e5 {[%clk 0:03:00]} 2. Nf3 {[%clk 0:03:00]}  Nc6 {[%clk 0:03:01]} 3. Bb5 {[%clk 0:03:00]}  a6 {[%clk 0:03:01]} 4. Ba4 {[%clk 0:03:00]}  Nf6 {[%clk 0:03:01]} 5. Nc3 {[%clk 0:03:00]}  b5 {[%clk 0:02:48]} 6. Bb3 {[%clk 0:03:00]}  Be7 {[%clk 0:02:49]} 7. d3 {[%clk 0:02:53]}  O-O {[%clk 0:02:49]} 8. Nd5 {[%clk 0:02:54]}  d6 {[%clk 0:02:48]} 9. c3 {[%clk 0:02:52]}  Na5 {[%clk 0:02:40]} 10. Nxe7+ {[%clk 0:02:50]}  Qxe7 {[%clk 0:02:41]} 11. Bc2 {[%clk 0:02:50]}  h6 {[%clk 0:02:38]} 12. h3 {[%clk 0:02:48]}  c5 {[%clk 0:02:38]} 13. g4 {[%clk 0:02:45]}  Nh7 {[%clk 0:02:20]} 14. Be3 {[%clk 0:02:42]}  Nc6 {[%clk 0:02:20]} 15. Qd2 {[%clk 0:02:42]}  Be6 {[%clk 0:02:00]} 16. Rg1 {[%clk 0:02:38]}  d5 {[%clk 0:01:45]} 17. Qe2 {[%clk 0:02:33]}  d4 {[%clk 0:01:44]} 18. Bd2 {[%clk 0:02:33]}  g5 {[%clk 0:01:41]} 19. h4 {[%clk 0:02:30]}  f6 {[%clk 0:01:42]} 20. cxd4 {[%clk 0:02:27]}  cxd4 {[%clk 0:01:36]} 21. Qd1 {[%clk 0:02:26]}  Rfc8 {[%clk 0:01:30]} 22. Bb3 {[%clk 0:02:26]}  Qf7 {[%clk 0:01:29]} 23. Ke2 {[%clk 0:02:21]}  Bxb3 {[%clk 0:01:26]} 24. Qxb3 {[%clk 0:02:22]}  Qxb3 {[%clk 0:01:26]} 25. axb3 {[%clk 0:02:23]}  Nf8 {[%clk 0:01:27]} 26. hxg5 {[%clk 0:02:09]}  hxg5 {[%clk 0:01:28]} 27. Rh1 {[%clk 0:02:09]}  Kg7 {[%clk 0:01:23]} 28. Rhc1 {[%clk 0:02:05]}  Ne6 {[%clk 0:01:18]} 29. Rc2 {[%clk 0:02:05]}  Ne7 {[%clk 0:01:17]} 30. Rxc8 {[%clk 0:02:04]}  Nxc8 {[%clk 0:01:18]} 31. Rc1 {[%clk 0:02:04]}  Ne7 {[%clk 0:01:17]} 32. Bb4 {[%clk 0:02:01]}  Rc8 {[%clk 0:01:10]} 33. Ra1 {[%clk 0:01:58]}  Nc6 {[%clk 0:01:11]} 34. Bd2 {[%clk 0:01:53]}  Ra8 {[%clk 0:01:01]} 35. Ne1 {[%clk 0:01:53]}  Kf7 {[%clk 0:00:57]} 36. Nc2 {[%clk 0:01:52]}  Ke7 {[%clk 0:00:57]} 37. Nb4 {[%clk 0:01:52]}  Nxb4 {[%clk 0:00:58]} 38. Bxb4+ {[%clk 0:01:53]}  Kd7 {[%clk 0:00:57]} 39. Rh1 {[%clk 0:01:52]}  Nf4+ {[%clk 0:00:57]} 40. Kd2 {[%clk 0:01:51]}  a5 {[%clk 0:00:57]} 41. Rh7+ {[%clk 0:01:48]}  Kc6 {[%clk 0:00:58]} 42. Be7 {[%clk 0:01:45]}  Ra7 {[%clk 0:00:50]} 43. Rf7 {[%clk 0:01:45]}  Ne6 {[%clk 0:00:46]} 44. Ke2 {[%clk 0:01:39]}  Nf4+ {[%clk 0:00:45]} 45. Kf3 {[%clk 0:01:35]}  Ne6 {[%clk 0:00:46]} 46. Kg3 {[%clk 0:01:33]}  Rd7 {[%clk 0:00:43]} 47. Kf3 {[%clk 0:01:30]}  Kb7 {[%clk 0:00:39]} 48. Kg3 {[%clk 0:01:28]}  Kc6 {[%clk 0:00:29]} 49. Rh7 {[%clk 0:01:27]}  Kb7 {[%clk 0:00:22]} 50. Rf7 {[%clk 0:01:26]}  Kc6 {[%clk 0:00:22]} 1/2-1/2


[Site "https://www.chess.com"]

[Event "Titled Tuesday Blitz May 25 2021"]
[White "Salem, A.R. Saleh"]
[Black "Krivonosov, Oleg"]
[WhiteFideId "9301348"]
[BlackFideId "11600349"]
[WhiteElo "2659"]
[BlackElo "2469"]
[Result "1-0"]
[Round "04"]
[TimeControl "180+1"]
[Date "2021.05.25"]
[WhiteClock "0:00:19"]
[BlackClock "0:00:36"]

1. d4 {[%clk 0:03:00]}  d5 {[%clk 0:02:59]} 2. c4 {[%clk 0:03:00]}  e6 {[%clk 0:02:59]} 3. Nc3 {[%clk 0:03:00]}  Be7 {[%clk 0:02:57]} 4. Nf3 {[%clk 0:03:01]}  Nf6 {[%clk 0:02:57]} 5. Bg5 {[%clk 0:03:02]}  h6 {[%clk 0:02:56]} 6. Bxf6 {[%clk 0:03:02]}  Bxf6 {[%clk 0:02:56]} 7. e3 {[%clk 0:03:03]}  O-O {[%clk 0:02:55]} 8. Rc1 {[%clk 0:03:04]}  c6 {[%clk 0:02:53]} 9. h4 {[%clk 0:03:05]}  c5 {[%clk 0:02:53]} 10. dxc5 {[%clk 0:03:03]}  dxc4 {[%clk 0:02:44]} 11. Qxd8 {[%clk 0:02:39]}  Rxd8 {[%clk 0:02:42]} 12. Bxc4 {[%clk 0:02:40]}  Nd7 {[%clk 0:02:35]} 13. Na4 {[%clk 0:02:24]}  Ne5 {[%clk 0:02:29]} 14. Nxe5 {[%clk 0:02:17]}  Bxe5 {[%clk 0:02:29]} 15. b4 {[%clk 0:01:48]}  Bd7 {[%clk 0:02:26]} 16. Nc3 {[%clk 0:01:33]}  b6 {[%clk 0:02:04]} 17. Ba6 {[%clk 0:01:14]}  bxc5 {[%clk 0:01:59]} 18. bxc5 {[%clk 0:01:10]}  Bc6 {[%clk 0:01:51]} 19. O-O {[%clk 0:01:05]}  Rd2 {[%clk 0:01:42]} 20. a4 {[%clk 0:00:59]}  Bxc3 {[%clk 0:01:34]} 21. Rxc3 {[%clk 0:00:59]}  Rb8 {[%clk 0:01:33]} 22. Bb5 {[%clk 0:00:47]}  Rc8 {[%clk 0:01:29]} 23. Rb1 {[%clk 0:00:38]}  Rd5 {[%clk 0:01:21]} 24. Bxc6 {[%clk 0:00:39]}  Rxc6 {[%clk 0:01:21]} 25. Rb8+ {[%clk 0:00:39]}  Kh7 {[%clk 0:01:20]} 26. Rb7 {[%clk 0:00:39]}  Kg6 {[%clk 0:01:18]} 27. Rxa7 {[%clk 0:00:36]}  Rcxc5 {[%clk 0:01:16]} 28. Rxc5 {[%clk 0:00:33]}  Rxc5 {[%clk 0:01:16]} 29. g3 {[%clk 0:00:31]}  Rc2 {[%clk 0:01:10]} 30. a5 {[%clk 0:00:30]}  Ra2 {[%clk 0:01:07]} 31. a6 {[%clk 0:00:30]}  h5 {[%clk 0:01:05]} 32. Kg2 {[%clk 0:00:29]}  Kf6 {[%clk 0:01:02]} 33. Kf3 {[%clk 0:00:29]}  g6 {[%clk 0:01:01]} 34. e4 {[%clk 0:00:29]}  Kg7 {[%clk 0:00:52]} 35. e5 {[%clk 0:00:28]}  Ra5 {[%clk 0:00:51]} 36. Ke4 {[%clk 0:00:27]}  Ra2 {[%clk 0:00:49]} 37. Ke3 {[%clk 0:00:23]}  Ra5 {[%clk 0:00:47]} 38. f4 {[%clk 0:00:20]}  Ra3+ {[%clk 0:00:47]} 39. Kd4 {[%clk 0:00:20]}  Rxg3 {[%clk 0:00:43]} 40. Rc7 {[%clk 0:00:20]}  Ra3 {[%clk 0:00:43]} 41. a7 {[%clk 0:00:20]}  g5 {[%clk 0:00:41]} 42. fxg5 {[%clk 0:00:20]}  Kg6 {[%clk 0:00:41]} 43. Kc5 {[%clk 0:00:18]}  Kf5 {[%clk 0:00:36]} 44. Rxf7+ {[%clk 0:00:18]}  Kxe5 {[%clk 0:00:36]} 45. g6 {[%clk 0:00:19]} 1-0


[Site "https://www.chess.com"]

[Event "Titled Tuesday Blitz May 25 2021"]
[White "Samsonkin, Artiom"]
[Black "Sanchez Alvares, Kelvin Antonio"]
[WhiteFideId "13503111"]
[BlackFideId "3906680"]
[WhiteElo "2513"]
[BlackElo "2247"]
[Result "0-1"]
[Round "04"]
[TimeControl "180+1"]
[Date "2021.05.25"]
[WhiteClock "0:00:09"]
[BlackClock "0:00:48"]

1. e4 {[%clk 0:03:00]}  e5 {[%clk 0:02:58]} 2. Nf3 {[%clk 0:03:00]}  Nc6 {[%clk 0:02:57]} 3. d4 {[%clk 0:03:01]}  exd4 {[%clk 0:02:55]} 4. Bc4 {[%clk 0:03:01]}  Bc5 {[%clk 0:02:50]} 5. Ng5 {[%clk 0:03:00]}  Nh6 {[%clk 0:02:48]} 6. Nxf7 {[%clk 0:03:00]}  Nxf7 {[%clk 0:02:47]} 7. Bxf7+ {[%clk 0:03:01]}  Kxf7 {[%clk 0:02:48]} 8. Qh5+ {[%clk 0:03:02]}  Kf8 {[%clk 0:02:45]} 9. Qxc5+ {[%clk 0:03:03]}  d6 {[%clk 0:02:45]} 10. Qc4 {[%clk 0:02:59]}  Qf6 {[%clk 0:02:45]} 11. O-O {[%clk 0:02:57]}  Qf7 {[%clk 0:02:44]} 12. Qe2 {[%clk 0:02:49]}  h5 {[%clk 0:02:44]} 13. f4 {[%clk 0:02:42]}  Bg4 {[%clk 0:02:41]} 14. Qb5 {[%clk 0:02:22]}  Rb8 {[%clk 0:02:41]} 15. h3 {[%clk 0:01:59]}  a6 {[%clk 0:02:38]} 16. Qg5 {[%clk 0:01:54]}  Bd7 {[%clk 0:02:34]} 17. c3 {[%clk 0:01:47]}  Re8 {[%clk 0:02:26]} 18. Nd2 {[%clk 0:01:45]}  Rh6 {[%clk 0:02:16]} 19. Kh1 {[%clk 0:01:36]}  Rg6 {[%clk 0:02:04]} 20. Qxh5 {[%clk 0:01:19]}  Bxh3 {[%clk 0:02:01]} 21. Qh8+ {[%clk 0:01:00]}  Ke7 {[%clk 0:02:01]} 22. Qh4+ {[%clk 0:01:00]}  Qf6 {[%clk 0:02:00]} 23. Qxf6+ {[%clk 0:00:55]}  gxf6 {[%clk 0:02:00]} 24. gxh3 {[%clk 0:00:53]}  Rh8 {[%clk 0:01:49]} 25. Kh2 {[%clk 0:00:51]}  Rhg8 {[%clk 0:01:49]} 26. Rf2 {[%clk 0:00:34]}  dxc3 {[%clk 0:01:49]} 27. bxc3 {[%clk 0:00:34]}  Rg3 {[%clk 0:01:49]} 28. Nf3 {[%clk 0:00:32]}  Na5 {[%clk 0:01:34]} 29. Nd4 {[%clk 0:00:27]}  Rxc3 {[%clk 0:01:30]} 30. Bd2 {[%clk 0:00:25]}  Ra3 {[%clk 0:01:24]} 31. Rc1 {[%clk 0:00:22]}  Kd7 {[%clk 0:01:24]} 32. e5 {[%clk 0:00:16]}  fxe5 {[%clk 0:01:18]} 33. fxe5 {[%clk 0:00:17]}  Rxa2 {[%clk 0:01:13]} 34. e6+ {[%clk 0:00:16]}  Kc8 {[%clk 0:01:09]} 35. Re1 {[%clk 0:00:12]}  Nc4 {[%clk 0:01:05]} 36. Be3 {[%clk 0:00:11]}  Ra3 {[%clk 0:01:02]} 37. Bg5 {[%clk 0:00:10]}  Ne5 {[%clk 0:00:57]} 38. e7 {[%clk 0:00:09]}  Re8 {[%clk 0:00:55]} 39. Rf8 {[%clk 0:00:08]}  Kd7 {[%clk 0:00:54]} 40. Rxe8 {[%clk 0:00:07]}  Kxe8 {[%clk 0:00:54]} 41. Nf5 {[%clk 0:00:08]}  Nf3+ {[%clk 0:00:51]} 42. Kg2 {[%clk 0:00:09]}  Nxe1+ {[%clk 0:00:48]} 43. Kf1 {[%clk 0:00:09]}  Rf3+ {[%clk 0:00:48]} 0-1


[Site "https://www.chess.com"]

[Event "Titled Tuesday Blitz May 25 2021"]
[White "Senft, Sean"]
[Black "Vakhlamov, Igor L."]
[WhiteFideId "2044960"]
[BlackFideId "24126748"]
[WhiteElo "1881"]
[BlackElo "2405"]
[Result "1-0"]
[Round "04"]
[TimeControl "180+1"]
[Date "2021.05.25"]
[WhiteClock "0:00:44"]
[BlackClock "0:00:08"]

1. d4 {[%clk 0:03:00]}  d5 {[%clk 0:02:59]} 2. c4 {[%clk 0:03:01]}  e6 {[%clk 0:02:59]} 3. Nc3 {[%clk 0:03:01]}  Bb4 {[%clk 0:02:58]} 4. cxd5 {[%clk 0:03:01]}  exd5 {[%clk 0:02:57]} 5. Nf3 {[%clk 0:03:02]}  Nf6 {[%clk 0:02:55]} 6. Bg5 {[%clk 0:03:03]}  h6 {[%clk 0:02:55]} 7. Bh4 {[%clk 0:03:02]}  g5 {[%clk 0:02:53]} 8. Bg3 {[%clk 0:03:02]}  Ne4 {[%clk 0:02:54]} 9. Qb3 {[%clk 0:02:57]}  c5 {[%clk 0:02:49]} 10. e3 {[%clk 0:02:52]}  Nc6 {[%clk 0:02:41]} 11. Bb5 {[%clk 0:02:50]}  h5 {[%clk 0:02:28]} 12. h3 {[%clk 0:02:35]}  Nxg3 {[%clk 0:02:22]} 13. fxg3 {[%clk 0:02:36]}  Be6 {[%clk 0:02:19]} 14. O-O {[%clk 0:02:24]}  f6 {[%clk 0:01:37]} 15. Na4 {[%clk 0:02:06]}  Qd6 {[%clk 0:00:43]} 16. dxc5 {[%clk 0:01:54]}  Bxc5 {[%clk 0:00:44]} 17. Rac1 {[%clk 0:01:52]}  d4 {[%clk 0:00:24]} 18. Qc2 {[%clk 0:01:36]}  Bb6 {[%clk 0:00:14]} 19. Rfd1 {[%clk 0:01:01]}  O-O {[%clk 0:00:10]} 20. Qg6+ {[%clk 0:00:59]}  Kh8 {[%clk 0:00:10]} 21. Bxc6 {[%clk 0:00:51]}  bxc6 {[%clk 0:00:10]} 22. Nxd4 {[%clk 0:00:47]}  Bd5 {[%clk 0:00:09]} 23. Qxh5+ {[%clk 0:00:44]}  Kg7 {[%clk 0:00:08]} 24. Nf5+ {[%clk 0:00:44]} 1-0


[Site "https://www.chess.com"]

[Event "Titled Tuesday Blitz May 25 2021"]
[White "Sergey85Rodchenkov"]
[Black "Remizov, Yaroslav"]
[BlackFideId "34134015"]
[WhiteElo "2528"]
[BlackElo "2367"]
[Result "1-0"]
[Round "04"]
[TimeControl "180+1"]
[Date "2021.05.25"]
[WhiteClock "0:00:08"]
[BlackClock "0:00:02"]

1. e4 {[%clk 0:02:59]}  d6 {[%clk 0:02:57]} 2. d4 {[%clk 0:02:58]}  Nf6 {[%clk 0:02:58]} 3. Nc3 {[%clk 0:02:58]}  e5 {[%clk 0:02:59]} 4. Nf3 {[%clk 0:02:58]}  Nbd7 {[%clk 0:02:58]} 5. Bc4 {[%clk 0:02:58]}  Be7 {[%clk 0:02:58]} 6. O-O {[%clk 0:02:59]}  O-O {[%clk 0:02:58]} 7. Re1 {[%clk 0:02:59]}  c6 {[%clk 0:02:58]} 8. a4 {[%clk 0:03:00]}  a5 {[%clk 0:02:59]} 9. h3 {[%clk 0:02:59]}  exd4 {[%clk 0:02:59]} 10. Nxd4 {[%clk 0:02:58]}  Nc5 {[%clk 0:03:00]} 11. Qf3 {[%clk 0:02:58]}  Be6 {[%clk 0:02:59]} 12. Bf1 {[%clk 0:02:53]}  Nfd7 {[%clk 0:02:56]} 13. Nf5 {[%clk 0:02:52]}  Ne5 {[%clk 0:02:49]} 14. Nxe7+ {[%clk 0:02:51]}  Qxe7 {[%clk 0:02:49]} 15. Qg3 {[%clk 0:02:51]}  f6 {[%clk 0:02:04]} 16. b3 {[%clk 0:02:49]}  Rae8 {[%clk 0:01:56]} 17. Ba3 {[%clk 0:02:48]}  b6 {[%clk 0:01:55]} 18. Rad1 {[%clk 0:02:47]}  Bc8 {[%clk 0:01:52]} 19. f4 {[%clk 0:02:38]}  Ng6 {[%clk 0:01:49]} 20. h4 {[%clk 0:02:27]}  Nh8 {[%clk 0:01:36]} 21. h5 {[%clk 0:02:25]}  Nf7 {[%clk 0:01:36]} 22. Bc4 {[%clk 0:02:21]}  Kh8 {[%clk 0:01:35]} 23. Bb2 {[%clk 0:02:13]}  Nh6 {[%clk 0:01:33]} 24. Bd3 {[%clk 0:01:26]}  Nxd3 {[%clk 0:01:23]} 25. Rxd3 {[%clk 0:01:24]}  Bg4 {[%clk 0:01:24]} 26. Ba3 {[%clk 0:01:19]}  c5 {[%clk 0:01:00]} 27. Qh4 {[%clk 0:01:03]}  Rd8 {[%clk 0:00:17]} 28. Rg3 {[%clk 0:00:49]}  Qd7 {[%clk 0:00:12]} 29. f5 {[%clk 0:00:45]}  d5 {[%clk 0:00:07]} 30. Rxg4 {[%clk 0:00:38]}  Nxg4 {[%clk 0:00:06]} 31. Qxg4 {[%clk 0:00:38]}  dxe4 {[%clk 0:00:04]} 32. Rxe4 {[%clk 0:00:26]}  Qd2 {[%clk 0:00:03]} 33. Ne2 {[%clk 0:00:18]}  Qxc2 {[%clk 0:00:03]} 34. Re7 {[%clk 0:00:17]}  Rg8 {[%clk 0:00:03]} 35. Nf4 {[%clk 0:00:16]}  Qd1+ {[%clk 0:00:03]} 36. Qxd1 {[%clk 0:00:15]}  Rxd1+ {[%clk 0:00:03]} 37. Kh2 {[%clk 0:00:15]}  Rb1 {[%clk 0:00:04]} 38. Re3 {[%clk 0:00:13]}  Rf8 {[%clk 0:00:03]} 39. Ne6 {[%clk 0:00:13]}  Re8 {[%clk 0:00:03]} 40. Rc3 {[%clk 0:00:12]}  Kg8 {[%clk 0:00:04]} 41. Bc1 {[%clk 0:00:12]}  Kf7 {[%clk 0:00:03]} 42. Bf4 {[%clk 0:00:12]}  Rxe6 {[%clk 0:00:03]} 43. fxe6+ {[%clk 0:00:12]}  Kxe6 {[%clk 0:00:04]} 44. Bc7 {[%clk 0:00:13]}  c4 {[%clk 0:00:03]} 45. bxc4 {[%clk 0:00:11]}  Rb4 {[%clk 0:00:03]} 46. c5 {[%clk 0:00:10]}  bxc5 {[%clk 0:00:04]} 47. Rxc5 {[%clk 0:00:10]}  Rxa4 {[%clk 0:00:04]} 48. Rxa5 {[%clk 0:00:10]}  Rc4 {[%clk 0:00:03]} 49. Bg3 {[%clk 0:00:09]}  g6 {[%clk 0:00:02]} 50. h6 {[%clk 0:00:08]} 1-0


[Site "https://www.chess.com"]